bitfinex/quotes_ETHUSD_20260209
["timestamp","ask_amount","ask_price","bid_price","bid_amount"]
[1770630867560,1.57773919,2038.8,2038.0,4.655647]
[1770630870492,1.57773919,2038.8,2038.0,4.65563526]
[1770630871612,0.37589647,2038.9,2038.0,5.60329827]
[1770630871831,1.60204782,2038.9,2038.0,5.60329827]
[1770630871980,1.60204782,2038.9,2038.2,0.001]
[1770630872167,0.002,2038.6,2038.2,0.001]
[1770630873069,0.002,2038.6,2038.2,0.9486071]
[1770630873607,0.002,2038.6,2038.3,1.22651228]
[1770630873804,0.002,2038.6,2038.3,2.17411938]
[1770630874486,0.002,2038.6,2038.4,0.9476071]
[1770630874691,0.002,2039.1,2038.4,0.9476071]
[1770630875769,0.002,2039.1,2038.6,0.9476071]
[1770630875968,0.002,2039.1,2038.7,0.9476071]
[1770630877380,0.002,2038.8,2038.7,0.9476071]
[1770630877606,1.22577667,2039.6,2038.6,3.429]
[1770630877607,1e-08,2039.7,2038.9,0.9476071]
[1770630877916,1e-08,2039.7,2038.9,1.22611095]
[1770630878132,0.37789633,2039.7,2038.8,2.17378246]
[1770630878417,0.37789633,2039.7,2038.8,2.17377566]
[1770630878709,0.37789633,2039.7,2038.9,1.22614789]
[1770630879282,0.37789633,2039.7,2038.8,2.17377984]
[1770630879700,1.60362683,2039.6,2038.6,9.28179579]
[1770630879903,0.3778963,2039.5,2038.7,1.22625093]
[1770630881525,1.22570794,2039.7,2038.8,0.9476071]
[1770630881903,1e-08,2039.7,2038.9,2.17375845]
[1770630883216,0.37789623,2039.7,2038.8,1.22616354]
[1770630884636,1.22573053,2039.6,2038.8,1.22616354]
[1770630885732,1.22573053,2039.6,2038.8,2.20040072]
[1770630885934,1.22573053,2039.6,2038.9,0.97423718]
[1770630886636,1e-08,2039.7,2039.0,1.22609122]
[1770630886941,1e-08,2039.7,2039.0,2.2003284]
[1770630887129,1e-08,2039.7,2039.1,0.97423718]
[1770630887321,1e-08,2039.7,2039.0,1.22609122]
[1770630887638,1e-08,2039.7,2039.0,2.2003284]
[1770630888141,1e-08,2039.7,2038.8,1.22620852]
[1770630888142,0.37789614,2039.7,2038.8,1.22620852]
[1770630888437,0.37789614,2039.7,2038.7,2.20046421]
[1770630889141,1.22573053,2039.6,2038.7,2.20046421]
[1770630889434,1.60362663,2039.6,2038.7,2.20046421]
[1770630890132,1.60362663,2039.6,2039.0,0.25549554]
[1770630890839,0.37789608,2039.5,2038.7,0.97423718]
[1770630891044,0.37789608,2039.5,2038.6,5.62851076]
[1770630891214,1.22585074,2039.4,2038.7,0.97423718]
[1770630891414,1.6037468,2039.4,2038.6,4.65427358]
[1770630891831,1.6037468,2039.4,2038.6,5.62851076]
[1770630892337,0.37789605,2039.3,2038.4,0.97423718]
[1770630892524,0.37789605,2039.3,2038.5,1.22638353]
[1770630892724,0.37789605,2039.3,2038.4,2.20065667]
[1770630892915,0.37789605,2039.3,2038.4,2.20066371]
[1770630893111,1.22597096,2039.2,2038.4,2.20066371]
[1770630893325,5.28139899,2039.4,2038.5,0.97423718]
[1770630893522,0.37789603,2039.3,2038.5,0.97423718]
[1770630896049,0.379896,2039.4,2038.5,2.2005832]
[1770630896417,0.379896,2039.4,2038.6,0.97423718]
[1770630897629,1.22591085,2039.3,2038.6,2.20053739]
[1770630897827,1.22591085,2039.3,2038.7,0.97423718]
[1770630898147,1.22789381,2039.4,2038.7,0.97423718]
[1770630899945,0.002,2039.4,2038.8,2.20044867]
[1770630900725,0.002,2039.4,2038.6,0.97423718]
[1770630900928,0.002,2039.4,2038.3,0.001]
[1770630900929,0.37789592,2039.2,2038.3,0.001]
[1770630901265,0.37789592,2039.2,2038.2,0.001]
[1770630901266,0.3778959,2038.8,2037.9,0.001]
[1770630901924,1.22627164,2038.7,2037.9,0.001]
[1770630902531,10.79197801,2038.5,2037.7,3.429]
[1770630902718,0.37789589,2038.5,2037.7,3.429]
[1770630903144,0.37789589,2038.5,2037.7,0.001]
[1770630903759,0.37789589,2038.5,2037.7,2.20206771]
[1770630903919,1.22609122,2039.0,2038.0,0.97423718]
[1770630905440,1.60398706,2039.0,2038.0,0.97423718]
[1770630906442,1.60398706,2039.0,2038.0,2.20092754]
[1770630906640,1.60398706,2039.0,2038.0,0.97423718]
[1770630906830,1.60398706,2039.0,2038.0,2.20092402]
[1770630907451,0.37789582,2038.8,2037.8,0.97423718]
[1770630907657,0.37789582,2038.8,2037.9,1.22674491]
[1770630907832,0.37789582,2038.8,2037.8,2.20100371]
[1770630908165,0.37789582,2038.8,2037.9,1.22674327]
[1770630908532,1.22627164,2038.7,2037.9,0.97423718]
[1770630910761,0.37789577,2038.8,2037.9,0.97423718]
[1770630911060,0.37789577,2038.8,2037.9,2.20098361]
[1770630911957,4.90462596,2038.9,2038.0,0.97423718]
[1770630912774,1.22615135,2039.0,2038.1,1.22763264]
[1770630913657,1.22615135,2039.0,2038.1,2.20186982]
[1770630913964,1.22615135,2039.0,2038.2,0.97423718]
[1770630914856,4.90436488,2039.2,2038.3,0.97423718]
[1770630915447,0.3778957,2039.1,2038.1,2.20750841]
[1770630915631,0.3778957,2039.1,2038.1,0.001]
[1770630917163,0.37789567,2038.9,2038.1,0.001]
[1770630919367,1.32849122,2039.0,2038.1,2.15819344]
[1770630919560,1.22609122,2039.0,2038.2,0.93056724]
[1770630921250,5.28226049,2039.2,2038.2,0.93056724]
[1770630921440,5.28226049,2039.2,2038.2,2.15713785]
[1770630921763,5.28226049,2039.2,2038.3,0.93056724]
[1770630923769,1.22597096,2039.3,2038.4,1.22645211]
[1770630924065,1.22597096,2039.3,2038.4,2.15701935]
[1770630925056,1.22597096,2039.3,2038.9,0.25567447]
[1770630925370,0.002,2039.0,2038.9,0.25567447]
[1770630925673,0.002,2039.0,2038.5,0.93056724]
[1770630926147,0.002,2039.0,2038.6,0.93056724]
[1770630928667,0.002,2039.0,2038.7,0.93056724]
[1770630929469,1.12997096,2039.3,2038.7,0.93056724]
[1770630930270,0.002,2039.4,2038.8,0.93056724]
[1770630930853,0.002,2039.4,2038.6,1.22629123]
[1770630930854,0.002,2039.4,2038.6,0.93056724]
[1770630931773,0.002,2039.4,2038.7,0.93056724]
[1770630932679,0.37989549,2039.4,2038.7,0.93056724]
[1770630933459,0.37989549,2039.4,2038.2,4.72056724]
[1770630933661,0.37789548,2039.3,2038.2,2.15712454]
[1770630933860,0.37789548,2039.3,2038.3,1.22650471]
[1770630934066,0.37789548,2039.3,2038.3,0.93056724]
[1770630934270,0.37789548,2039.3,2038.1,0.93156724]
[1770630934578,0.37789547,2039.1,2038.2,0.93056724]
[1770630934783,0.37789547,2039.1,2038.2,2.15713388]
[1770630934963,0.37789547,2039.1,2038.3,0.93056724]
[1770630935476,1.21419226,2039.2,2038.3,0.93056724]
[1770630935679,1.20177476,2039.2,2038.3,0.93056724]
[1770630935864,1.1886836,2039.2,2038.3,0.93056724]
[1770630936183,1.174882,2039.2,2038.3,0.93056724]
[1770630936487,0.37989545,2039.4,2038.4,3.8635222]
[1770630936786,0.37989545,2039.4,2037.7,0.001]
[1770630936787,0.1024,2038.3,2037.7,0.001]
[1770630936973,11.41020821,2038.1,2036.5,4.91017905]
[1770630937176,0.99612609,2038.0,2036.4,3.428]
[1770630937377,0.99612609,2038.0,2036.7,2.15801182]
[1770630937686,0.99612609,2038.0,2036.9,2.15789298]
[1770630937898,0.99612609,2038.0,2037.0,0.93056724]
[1770630938582,1.22657246,2038.2,2037.3,0.93056724]
[1770630939089,1.22639195,2038.5,2037.9,0.001]
[1770630939596,1.22621149,2038.8,2037.9,0.93156724]
[1770630940373,1.22621149,2038.8,2038.0,0.93056724]
[1770630940766,1.22803109,2039.1,2038.2,0.93056724]
[1770630942296,2.22415718,2039.1,2037.9,2.15828436]
[1770630942595,2.22415718,2039.1,2037.9,2.15828207]
[1770630942801,10.41408212,2038.3,2037.0,0.001]
[1770630943098,0.0735222,2037.8,2037.0,0.001]
[1770630943293,11.41020821,2037.9,2037.0,0.001]
[1770630943465,3.5314,2038.2,2037.0,0.001]
[1770630943667,0.1024,2038.1,2037.0,0.001]
[1770630944001,1.09852609,2038.1,2037.0,0.001]
[1770630944497,0.99612609,2038.0,2037.0,0.001]
[1770630944897,1.22675303,2037.9,2037.0,0.001]
[1770630947176,4.90701212,2038.0,2036.2,0.93671916]
[1770630947177,10.41408212,2037.4,2036.2,0.93671916]
[1770630947372,0.1024,2037.3,2036.2,2.16446226]
[1770630947577,0.1024,2037.3,2036.2,2.16445751]
[1770630947875,0.1024,2037.3,2036.2,0.93424813]
[1770630948074,0.1024,2037.3,2035.7,0.93532378]
[1770630948281,0.1024,2037.3,2036.1,1.22779319]
[1770630949193,1.22717455,2037.2,2036.1,1.22779319]
[1770630949511,1.22717455,2037.2,2036.0,2.16458056]
[1770630949720,1.22717455,2037.2,2036.0,2.16460979]
[1770630950825,1.22717455,2037.2,2035.3,0.93671916]
[1770630950826,1.07339218,2037.1,2035.3,0.93671916]
[1770630951008,1.07339218,2037.1,2035.0,0.43179956]
[1770630951009,10.41408212,2036.7,2035.6,1.2281048]
[1770630951208,1.22753608,2036.6,2036.2,0.001]
[1770630952922,1.22729504,2037.0,2036.2,0.001]
[1770630953720,1.22711431,2037.3,2036.3,0.93671916]
[1770630954294,0.1024,2037.2,2036.3,0.93671916]
[1770630954489,1.22711431,2037.3,2036.3,0.93671916]
[1770630955321,4.90843574,2037.4,2036.5,0.93671916]
[1770630955818,1.22693364,2037.6,2036.5,0.93671916]
[1770630958344,1.22681322,2037.8,2036.7,0.93671916]
[1770630959247,1.22681322,2037.8,2036.7,1.01024136]
[1770630959436,1.22651228,2038.3,2036.8,3.431]
[1770630959746,1.22651228,2038.3,2036.9,0.93671916]
[1770630959957,1.22651228,2038.3,2037.1,0.93671916]
[1770630960244,1.22651228,2038.3,2037.3,0.93671916]
[1770630960415,1.22647874,2038.4,2037.3,0.93671916]
[1770630960819,1.22647874,2038.4,2037.3,1.01024136]
[1770630961833,1.22647874,2038.4,2037.5,0.93671916]
[1770630962114,16.19234994,2038.8,2037.4,0.0735222]
[1770630962115,1.22627164,2038.7,2037.4,0.0735222]
[1770630962315,4.90461021,2038.9,2037.7,0.93671916]
[1770630962711,4.90461021,2038.9,2037.7,1.01024136]
[1770630962944,4.90461021,2038.9,2037.7,0.93671916]
[1770630963161,4.9044548,2039.0,2037.8,0.0735222]
[1770630963440,4.9044548,2039.0,2037.9,0.93671916]
[1770630963643,1.22806771,2039.1,2037.9,0.93671916]
[1770630964419,0.002,2038.2,2038.1,0.93671916]
[1770630964625,0.002,2039.1,2038.1,0.93671916]
[1770630964845,0.002,2038.4,2038.1,0.93671916]
[1770630965016,0.002,2038.4,2037.8,8.41029354]
[1770630965017,11.28727449,2038.8,2037.8,4.65681148]
[1770630965351,11.28727449,2038.8,2037.9,1.22674516]
[1770630965947,11.28727449,2038.8,2037.9,1.22674761]
[1770630966137,0.1044,2039.1,2037.9,1.22674761]
[1770630966335,0.002,2039.1,2037.9,1.22674761]
[1770630967847,0.002,2039.1,2037.9,2.16346677]
[1770630968147,0.97299218,2039.1,2037.9,0.93671916]
[1770630968353,0.97299218,2039.1,2037.9,2.16346345]
[1770630968956,2.1970834,2039.0,2037.8,4.6567657]
[1770630969149,2.1970834,2039.0,2037.9,1.22674655]
[1770630969351,2.1970834,2039.0,2037.9,1.226742]
[1770630970156,1.22609122,2039.0,2038.0,0.93671916]
[1770630971271,4.90636488,2039.1,2038.0,2.16340675]
[1770630971660,0.97099218,2039.0,2038.0,1.22668653]
[1770630972149,0.97099218,2039.0,2037.9,1.22673257]
[1770630972930,12.25826667,2038.8,2037.8,3.43]
[1770630973166,1.22627164,2038.7,2037.9,0.93671916]
[1770630973651,5.8771216,2039.1,2037.9,0.93671916]
[1770630973652,1.22609122,2039.0,2037.9,0.93671916]
[1770630975242,1.22609122,2039.0,2037.9,2.16347139]
[1770630975959,1.22609122,2039.0,2038.0,0.92726015]
[1770630976454,1.22609122,2039.0,2038.2,0.001]
[1770630976654,1.22609122,2039.0,2038.2,0.92826015]
[1770630976857,0.002,2038.9,2038.2,0.92826015]
[1770630977732,0.002,2038.9,2038.2,0.001]
[1770630977935,0.002,2038.9,2037.4,2.21804374]
[1770630977936,0.90236726,2038.7,2037.4,2.21804374]
[1770630978135,0.90236726,2038.7,2037.4,2.21809025]
[1770630978362,0.90236726,2038.7,2037.4,0.99103763]
[1770630979158,0.90236726,2038.7,2037.6,2.21793828]
[1770630979357,0.90236726,2038.7,2037.3,0.99103763]
[1770630979565,1.22639195,2038.5,2037.3,2.21811063]
[1770630981334,1.22639195,2038.5,2037.4,0.99103763]
[1770630981540,1.22639195,2038.5,2037.5,1.22699386]
[1770630981741,1.22639195,2038.5,2037.6,0.99103763]
[1770630983636,1.22621149,2038.8,2037.8,0.99103763]
[1770630983943,0.002,2038.9,2038.5,0.14]
[1770630984156,1.22815295,2038.9,2038.5,0.14]
[1770630985050,0.002,2038.9,2038.5,0.14]
[1770630985250,1.22815331,2038.9,2038.5,0.14]
[1770630985453,1.22815331,2038.9,2037.8,4.42003763]
[1770630985454,2.13052057,2038.9,2037.8,4.42003763]
[1770630985653,2.13052057,2038.9,2037.8,5.64680437]
[1770630986453,2.13052057,2038.9,2037.8,4.65576674]
[1770630986653,1.22815331,2038.9,2037.9,0.99103763]
[1770630989051,0.002,2038.9,2037.9,0.99103763]
[1770630989256,0.90436726,2038.9,2037.9,1.22674693]
[1770630990557,0.90436726,2038.9,2037.8,4.6558132]
[1770630991457,0.90236726,2038.7,2037.7,1.22687343]
[1770630992072,0.90236726,2038.7,2037.7,2.21791106]
[1770630993381,1.22633179,2038.6,2037.6,4.907587]
[1770630993577,1.22633179,2038.6,2037.6,1.22693364]
[1770630993878,0.90236726,2038.5,2037.5,3.43]
[1770630994274,0.90236726,2038.5,2037.5,4.65699061]
[1770630995303,1.22633179,2038.6,2037.6,0.99103763]
[1770630995505,4.90532718,2038.7,2037.7,1.22687343]
[1770630995683,4.90532718,2038.7,2037.7,2.21791106]
[1770630996774,1.22627164,2038.7,2037.8,0.99103763]
[1770630997981,0.002,2038.9,2037.9,1.06455983]
[1770630998185,0.002,2038.9,2037.9,0.99103763]
[1770630999458,0.90436726,2038.9,2037.8,1.22678505]
[1770630999781,1.22621149,2038.8,2037.8,5.64682268]
[1770630999984,0.002,2038.9,2037.9,0.99103763]
[1770631000177,1.22815673,2038.9,2037.9,0.99103763]
[1770631001388,1.22815673,2038.9,2038.1,0.99103763]
[1770631001984,0.002,2038.9,2038.2,1.22657246]
[1770631002283,0.002,2038.9,2038.3,0.99103763]
[1770631002481,0.002,2038.9,2038.2,1.22657246]
[1770631003663,0.002,2038.7,2038.2,1.22657246]
[1770631004366,0.002,2038.7,2038.1,4.90649092]
[1770631004757,0.002,2038.7,2038.2,0.99103763]
[1770631004958,1.18078317,2039.1,2038.2,0.99103763]
[1770631005386,1.22601446,2039.2,2038.2,1.06455983]
[1770631005583,1.02484839,2039.5,2038.6,0.9564478]
[1770631005794,4.9049339,2039.6,2038.8,0.9564478]
[1770631005795,1.22773903,2039.6,2038.8,0.9564478]
[1770631006175,1e-08,2039.7,2038.8,1.02997]
[1770631006485,1e-08,2039.7,2039.2,0.9564478]
[1770631006781,0.002,2040.1,2039.3,0.0735222]
[1770631006962,0.002,2040.1,2039.5,0.9564478]
[1770631008765,0.002,2040.1,2039.6,1.22573053]
[1770631009194,0.002,2040.1,2039.5,2.18219854]
[1770631010397,0.002,2040.1,2039.6,0.9564478]
[1770631010895,0.002,2040.1,2039.7,2.18211824]
[1770631011196,0.002,2040.1,2039.8,0.9564478]
[1770631011391,0.002,2040.4,2039.8,0.9564478]
[1770631011599,0.002,2040.4,2039.8,1.02997]
[1770631013319,0.002,2040.4,2039.9,1.22555027]
[1770631013971,0.002,2040.4,2039.8,1.22558497]
[1770631015003,0.002,2040.4,2039.8,1.22558506]
[1770631015380,0.002,2040.4,2039.8,2.18203286]
[1770631015775,0.002,2040.4,2039.8,1.22558506]
[1770631015974,12.20874684,2040.4,2039.3,0.9564478]
[1770631016208,0.91947235,2040.3,2039.3,3.427]
[1770631016382,0.91947235,2040.3,2039.3,4.65287098]
[1770631016582,0.91947235,2040.3,2039.4,1.22584646]
[1770631016806,0.91947235,2040.3,2039.7,0.001]
[1770631017006,0.002,2040.2,2039.7,0.001]
[1770631017200,0.92147235,2040.2,2039.7,0.001]
[1770631017403,1.22741232,2040.2,2039.7,0.001]
[1770631018419,2.14688467,2040.2,2039.7,0.001]
[1770631018587,0.91947235,2040.1,2039.7,0.001]
[1770631019331,0.91947235,2039.9,2038.8,4.65318596]
[1770631020321,0.91947235,2039.9,2038.9,0.9564478]
[1770631020497,1.22549019,2040.0,2038.9,0.9564478]
[1770631021512,1.22739199,2040.2,2039.2,0.9564478]
[1770631021684,1.22739199,2040.2,2039.4,0.9564478]
[1770631021884,1.22739199,2040.2,2039.5,3.427]
[1770631022095,1.22737766,2040.2,2039.5,4.3834478]
[1770631022301,0.002,2040.2,2039.6,0.9564478]
[1770631022834,0.002,2040.2,2039.8,0.9564478]
[1770631023794,0.002,2040.2,2039.8,2.18203507]
[1770631024000,0.002,2040.2,2039.8,2.18204553]
[1770631024737,0.002,2040.2,2039.8,5.97204553]
[1770631025105,0.002,2040.2,2039.8,5.01559773]
[1770631025518,0.002,2040.2,2039.8,3.79]
[1770631025707,0.002,2040.2,2039.8,5.01559725]
[1770631026306,0.002,2040.2,2039.8,5.97204505]
[1770631026842,0.002,2040.4,2039.9,0.9564478]
[1770631028114,0.002,2040.4,2040.1,0.9564478]
[1770631028419,0.002,2040.4,2040.2,3.426]
[1770631029131,0.002,2040.6,2040.2,3.426]
[1770631029730,0.97131418,2041.1,2040.3,0.9564478]
[1770631029908,1.22480748,2041.2,2040.3,0.9564478]
[1770631030224,0.002,2041.3,2040.4,2.18169775]
[1770631030424,0.92147235,2041.3,2040.3,1.22527021]
[1770631030624,0.92147235,2041.3,2040.2,1.22531666]
[1770631030830,0.92147235,2041.3,2040.3,3.426]
[1770631031234,0.92147235,2041.3,2040.3,4.65130744]
[1770631031934,0.92147235,2041.3,2040.3,3.426]
[1770631032525,1.22476974,2041.2,2040.3,4.65130448]
[1770631032722,1.22476974,2041.2,2040.3,5.60775228]
[1770631033219,2.14424209,2041.2,2040.3,3.426]
[1770631034028,1.22476974,2041.2,2040.3,3.426]
[1770631034242,2.14424209,2041.2,2040.3,3.426]
[1770631035648,2.14424209,2041.2,2040.3,4.65129747]
[1770631035857,1.22476974,2041.2,2040.3,4.65129747]
[1770631036348,1.22476974,2041.2,2040.3,5.57508918]
[1770631036534,1.22476974,2041.2,2040.4,0.92379171]
[1770631036739,1.21291872,2041.2,2040.4,0.92379171]
[1770631036934,1.20042497,2041.2,2040.4,0.92379171]
[1770631037116,0.002,2041.3,2040.4,0.92379171]
[1770631037518,0.002,2041.3,2040.4,2.14903407]
[1770631037722,0.002,2041.3,2040.4,0.92379171]
[1770631039152,0.002,2041.3,2040.4,2.14902895]
[1770631039564,0.002,2041.3,2040.4,0.92379171]
[1770631040757,0.002,2041.3,2040.4,4.34879171]
[1770631041859,0.002,2041.3,2040.5,0.97082394]
[1770631042246,0.002,2041.1,2040.5,0.97082394]
[1770631044063,3.6582604,2041.5,2040.6,4.76082394]
[1770631044064,3.65820374,2041.5,2040.6,4.76082394]
[1770631044274,1.22460456,2041.5,2040.7,0.97082394]
[1770631044462,1.22460456,2041.5,2040.7,1.04434614]
[1770631044758,1.226578,2041.6,2040.7,1.04434614]
[1770631045057,1.226578,2041.6,2040.8,0.97082394]
[1770631045358,0.002,2041.6,2040.8,0.97082394]
[1770631045742,1.2265342,2041.6,2040.8,0.97082394]
[1770631046339,0.002,2041.6,2041.0,0.97082394]
[1770631047362,0.002,2041.6,2041.2,0.97082394]
[1770631048167,1.48031989,2042.0,2041.3,0.97082394]
[1770631048471,1.48032681,2042.0,2041.4,0.97082394]
[1770631049288,1.48032681,2042.0,2041.1,5.6206041]
[1770631049581,0.93622062,2041.9,2041.1,3.425]
[1770631049873,0.93622062,2041.9,2040.8,3.424]
[1770631050258,0.93622062,2041.9,2040.6,1.22512193]
[1770631050446,0.93622062,2041.7,2040.6,4.64912193]
[1770631050851,0.93622062,2041.7,2040.6,3.424]
[1770631051445,0.93622062,2041.5,2040.6,3.424]
[1770631053571,1.22464975,2041.4,2040.6,3.424]
[1770631053876,4.89763933,2041.9,2040.6,3.424]
[1770631053877,5.83369774,2041.9,2040.7,1.04434614]
[1770631054570,5.83369774,2041.9,2040.7,0.97082394]
[1770631055082,0.002,2041.5,2040.9,1.04434614]
[1770631055774,0.002,2041.7,2041.2,1.22476974]
[1770631055949,0.002,2041.7,2041.1,2.19561264]
[1770631056151,0.002,2041.7,2041.1,1.22482807]
[1770631056876,0.002,2041.7,2040.9,1.22490397]
[1770631057071,0.002,2041.7,2040.8,0.97082394]
[1770631057272,0.002,2041.7,2040.9,1.22494104]
[1770631058044,0.002,2041.7,2040.9,1.29847197]
[1770631058249,0.002,2041.7,2040.8,2.19578573]
[1770631058470,0.002,2041.7,2040.9,3.424]
[1770631059355,0.002,2041.7,2040.9,4.39482394]
[1770631059553,0.002,2041.7,2040.9,3.424]
[1770631060081,0.002,2041.7,2041.0,1.22488975]
[1770631060689,0.002,2041.7,2041.0,2.26923589]
[1770631060868,0.002,2041.7,2040.9,4.64893178]
[1770631061763,0.002,2041.7,2040.9,4.64894345]
[1770631061954,0.002,2041.7,2040.9,3.424]
[1770631062177,1.2264698,2041.7,2040.9,3.424]
[1770631063961,1.2264698,2041.7,2040.9,4.64892086]
[1770631064270,1.2264698,2041.7,2040.9,4.64894945]
[1770631064460,1.21478387,2041.7,2040.9,4.64894945]
[1770631064659,1.20246416,2041.7,2040.9,4.64894945]
[1770631064855,1.1757832,2041.7,2040.9,4.64894945]
[1770631065060,1.16134697,2041.7,2040.9,4.64894945]
[1770631065460,1.16134697,2041.7,2040.9,3.424]
[1770631065905,1.16134697,2041.7,2040.9,4.64894829]
[1770631066187,4.89787921,2041.8,2040.9,4.64894829]
[1770631066400,4.89787921,2041.8,2040.9,5.56622506]
[1770631066605,4.89787921,2041.8,2041.0,0.91727677]
[1770631067305,4.89787921,2041.8,2040.9,3.424]
[1770631067511,5.84320832,2041.8,2040.9,3.424]
[1770631067972,5.84320832,2041.8,2040.9,4.64894953]
[1770631068171,5.84320832,2041.8,2040.9,3.424]
[1770631068691,5.84320832,2041.8,2040.9,4.6489458]
[1770631068897,4.89787921,2041.8,2040.9,5.56622257]
[1770631069190,4.89787921,2041.8,2041.0,0.91727677]
[1770631069387,1.22428991,2042.0,2041.1,0.99079897]
[1770631069589,1.22428991,2042.0,2041.1,0.91727677]
[1770631069788,1.22428991,2042.0,2040.9,3.424]
[1770631069789,0.94532911,2041.9,2040.9,3.424]
[1770631069983,0.94532911,2041.9,2041.0,3.424]
[1770631070393,2.16973894,2041.8,2040.9,3.424]
[1770631072278,4.89763933,2042.0,2040.9,4.64890085]
[1770631072477,5.84296844,2042.0,2040.9,5.56617762]
[1770631072703,0.94532911,2041.9,2040.9,5.566221]
[1770631073233,0.94532911,2041.9,2040.9,5.567221]
[1770631073412,0.002,2041.8,2040.9,5.567221]
[1770631074701,1.22640983,2041.8,2040.9,5.567221]
[1770631075205,2.17173894,2041.8,2040.9,3.425]
[1770631075389,2.17173894,2041.8,2040.9,4.64994452]
[1770631075788,2.17173894,2041.8,2040.9,3.425]
[1770631076610,2.17173894,2041.8,2040.9,4.64994147]
[1770631076807,2.17173894,2041.8,2040.9,3.425]
[1770631079105,2.17173894,2041.8,2040.9,5.56722154]
[1770631079708,2.17173894,2041.8,2040.9,4.34227677]
[1770631080609,2.17173894,2041.8,2040.9,5.56718966]
[1770631081305,2.17173894,2041.8,2040.9,4.34227677]
[1770631081540,0.94532911,2041.7,2040.9,0.001]
[1770631082014,1.22640983,2041.8,2040.9,2.14320542]
[1770631082425,1.22640983,2041.8,2041.0,0.91727677]
[1770631082636,2.17173894,2041.8,2040.9,0.001]
[1770631082792,2.17173894,2041.8,2040.9,2.14322124]
[1770631083623,0.002,2041.8,2040.9,2.14322124]
[1770631083826,0.002,2041.8,2041.0,0.91727677]
[1770631084126,0.002,2041.8,2041.0,3.424]
[1770631084127,0.94732911,2041.8,2041.0,3.424]
[1770631084634,0.94732911,2041.8,2040.9,4.64994489]
[1770631085328,0.94732911,2041.8,2040.9,5.56722166]
[1770631085828,1.2244698,2041.7,2040.9,5.56722166]
[1770631086008,1.2244698,2041.7,2041.1,0.001]
[1770631087420,1.22645619,2041.8,2041.1,0.001]
[1770631088941,2.1717853,2041.8,2041.1,0.001]
[1770631089233,0.94532911,2041.7,2041.1,0.001]
[1770631090039,1.22452978,2041.6,2041.1,0.001]
[1770631090535,2.16985889,2041.6,2041.1,0.001]
[1770631091936,1.22452978,2041.6,2041.1,0.001]
[1770631092232,0.002,2041.8,2041.1,0.001]
[1770631092632,0.002,2041.8,2041.1,0.91827677]
[1770631092940,0.002,2041.8,2041.3,0.91727677]
[1770631094830,0.002,2041.8,2041.4,2.14192652]
[1770631096057,0.002,2041.8,2041.5,0.9047962]
[1770631096437,0.002,2041.8,2041.4,3.424]
[1770631096640,5.84316142,2042.4,2041.4,3.424]
[1770631096942,5.81765775,2042.4,2041.4,5.55339549]
[1770631097345,4.86492147,2042.4,2041.4,5.55339549]
[1770631097528,0.95273628,2042.3,2041.4,5.55339549]
[1770631097843,0.95273628,2042.3,2041.4,3.424]
[1770631098243,11.2474061,2042.1,2041.2,3.79]
[1770631098413,0.97322996,2042.0,2041.2,3.79]
[1770631099040,1.22434987,2041.9,2041.2,3.79]
[1770631099335,1.22434987,2041.9,2041.1,1.2258231]
[1770631099529,1.22434987,2041.9,2041.1,0.001]
[1770631100139,1.22434987,2041.9,2041.1,1.22581597]
[1770631100541,2.19757983,2041.9,2041.1,0.001]
[1770631101133,0.002,2041.7,2041.1,1.22582429]
[1770631101337,0.002,2041.7,2041.1,2.19508464]
[1770631103345,0.002,2041.7,2041.1,0.97026035]
[1770631103942,0.002,2041.7,2041.1,0.001]
[1770631106123,0.97522996,2041.7,2041.1,0.001]
[1770631107719,1.22452978,2041.6,2041.1,0.001]
[1770631107918,2.19775974,2041.6,2041.1,0.001]
[1770631108746,1.22452978,2041.6,2041.1,0.001]
[1770631110547,0.002,2041.7,2041.1,0.97026035]
[1770631112765,0.002,2041.7,2041.1,2.19506805]
[1770631113268,0.002,2041.7,2041.3,0.001]
[1770631115787,0.002,2041.7,2041.3,0.97026035]
[1770631116279,0.97522996,2041.7,2041.3,0.001]
[1770631116856,1.22452978,2041.6,2041.3,0.001]
[1770631117974,2.19775974,2041.6,2041.1,0.001]
[1770631119655,1.22452978,2041.6,2041.1,0.001]
[1770631121758,4.90011912,2041.7,2041.1,0.001]
[1770631123577,0.97322996,2041.6,2041.1,0.001]
[1770631123881,1.22458976,2041.5,2041.1,0.001]
[1770631125579,1.22458976,2041.5,2041.3,0.001]
[1770631125778,1.22658976,2041.5,2041.3,0.001]
[1770631126083,0.002,2041.5,2041.1,0.001]
[1770631126675,0.90820052,2041.5,2041.1,0.001]
[1770631126980,0.90820052,2041.5,2040.9,0.001]
[1770631127962,0.90820052,2041.5,2040.7,0.001]
[1770631128174,2.13085027,2041.4,2040.7,0.001]
[1770631128377,4.33020052,2041.3,2040.7,0.001]
[1770631128962,0.90620052,2041.2,2040.4,0.001]
[1770631130265,0.90620052,2041.0,2040.4,0.001]
[1770631131284,1.22482974,2041.1,2040.4,0.001]
[1770631132687,4.89931899,2041.2,2040.4,0.001]
[1770631132877,4.89931899,2041.2,2040.4,0.92310161]
[1770631133890,5.80551951,2041.2,2040.4,0.001]
[1770631134294,0.90620052,2041.1,2040.4,0.001]
[1770631136199,0.90620052,2040.9,2040.4,0.001]
[1770631137574,1.22488975,2041.0,2040.6,0.001]
[1770631137780,0.90620052,2040.9,2040.4,0.001]
[1770631138203,1.2250098,2040.8,2040.2,0.001]
[1770631138379,4.6500098,2040.8,2040.2,0.001]
[1770631138571,1.22499474,2040.9,2040.2,0.92310161]
[1770631140906,0.90820052,2041.0,2040.2,0.001]
[1770631141598,0.90820052,2041.0,2040.2,0.92310161]
[1770631141798,0.002,2041.0,2040.3,0.92210161]
[1770631145105,0.002,2041.0,2040.4,0.92210161]
[1770631147104,0.002,2041.0,2040.5,1.2251899]
[1770631147411,0.002,2041.0,2040.6,0.92210161]
[1770631147709,4.88170784,2041.5,2040.6,0.92210161]
[1770631147910,4.86945135,2041.5,2040.6,0.92210161]
[1770631148206,4.84290663,2041.5,2040.7,0.92210161]
[1770631148407,4.84290663,2041.5,2041.0,0.01436287]
[1770631149382,1.22458976,2041.6,2041.0,1.23925105]